[Event "44th Chess Olympiad Women 2022"]
[Site "Chennai"]
[Date "2022.08.07"]
[Round "9.14"]
[White "Lazarne Vajda, Szidonia"]
[Black "Mendoza, Shania Mae"]
[Result "1-0"]
[WhiteElo "2313"]
[BlackElo "2153"]
[Annotator "RC"]
[PlyCount "122"]
[EventDate "2022.??.??"]
[TimeControl "60"]

1. d4 {[%emt 0:00:05]} d5 {[%emt 0:01:29]} 2. Bf4 {[%emt 0:00:44]} Nf6 {
[%emt 0:02:15]} 3. e3 {[%emt 0:01:40]} g6 {[%emt 0:05:43]} 4. Nc3 {[%emt 0:00:
00]} Bg7 {[%emt 0:03:59]} 5. h4 {[%emt 0:03:09]} h6 {[%emt 0:08:35]} 6. Nf3 {
[%emt 0:14:47]} a6 {[%emt 0:09:57]} 7. Ne5 {[%emt 0:04:03]} c5 {[%emt 0:10:16]}
8. Qd2 {[%emt 0:12:34]} c4 {[%emt 0:15:37]} 9. Be2 {[%emt 0:10:05]} b5 {
[%emt 0:00:46]} 10. Bf3 {[%emt 0:04:47]} Bb7 {[%emt 0:04:03]} 11. a4 {[%emt 0:
00:00]} Qb6 {[%emt 0:04:03]} 12. axb5 {[%emt 0:06:33]} axb5 {[%emt 0:00:14]}
13. O-O {[%emt 0:01:53]} Rxa1 {[%emt 0:05:18]} 14. Rxa1 {[%emt 0:00:05]} O-O {
[%emt 0:00:06]} 15. b4 {[%emt 0:03:23]} cxb3 {[%emt 0:10:51]} 16. cxb3 {
[%emt 0:00:07]} Ne4 {[%emt 0:03:19]} 17. Nxe4 {[%emt 0:04:41]} dxe4 {[%emt 0:
00:00]} 18. Be2 {[%emt 0:00:13]} Rd8 {[%emt 0:03:53]} 19. Qb4 {[%emt 0:02:35]}
Bf6 {[%emt 0:03:03]} 20. Qxb5 {[%emt 0:05:41]} Qxb5 {[%emt 0:00:53]} 21. Bxb5 {
[%emt 0:00:06]} g5 {[%emt 0:00:55]} 22. hxg5 {[%emt 0:01:21]} hxg5 {[%emt 0:00:
00]} 23. Bg3 {[%emt 0:00:08]} Bd5 {[%emt 0:01:33]} 24. Bc4 {[%emt 0:03:42]}
Bxe5 {[%emt 0:01:11]} 25. Bxe5 {[%emt 0:00:15]} Nc6 {[%emt 0:00:41]} 26. Bc7 {
[%emt 0:04:16]} Rd7 {[%emt 0:00:09]} 27. Bxd5 {[%emt 0:02:23]} Rxd5 {[%emt 0:
00:00]} 28. Ra6 {[%emt 0:01:24]} Nb4 {[%emt 0:00:23]} 29. Ra5 {[%emt 0:01:47]}
f6 {[%emt 0:00:32]} 30. Rxd5 {[%emt 0:03:38]} Nxd5 {[%emt 0:00:02]} 31. Ba5 {
[%emt 0:00:06]} Kf7 {[%emt 0:00:05]} 32. Kf1 {[%emt 0:00:31]} Ke6 {[%emt 0:00:
00]} 33. Ke2 {[%emt 0:00:14]} g4 {[%emt 0:00:21]} 34. Kd2 {[%emt 0:01:20]} Kd7
{[%emt 0:00:18]} 35. Ke2 {[%emt 0:00:38]} Ke6 {[%emt 0:00:09]} 36. Be1 {
[%emt 0:00:07]} Kd7 {[%emt 0:01:21]} 37. Kf1 {[%emt 0:00:15]} Kd6 {[%emt 0:00:
00]} 38. Bd2 {[%emt 0:00:16]} e5 {[%emt 0:00:22]} 39. dxe5+ {[%emt 0:01:07]}
Kxe5 {[%emt 0:00:21]} 40. Kg1 {[%emt 0:00:59]} Ne7 {[%emt 0:02:50]} 41. Bc3+ {
[%emt 0:31:57]} Ke6 {[%emt 0:30:20]} 42. f3 {[%emt 0:00:00]} gxf3 {[%emt 0:00:
00]} 43. gxf3 {[%emt 0:00:00]} Nd5 {[%emt 0:00:00]} 44. Bd4 {[%emt 0:00:00]}
exf3 {[%emt 0:00:00]} 45. Kf2 {[%emt 0:00:00]} f5 {[%emt 0:00:00]} 46. Kxf3 {
[%emt 0:00:00]} Kd6 {[%emt 0:00:00]} 47. Bb2 {[%emt 0:00:00]} Kc5 {[%emt 0:00:
00]} 48. Ba3+ {[%emt 0:00:00]} Kb5 {[%emt 0:00:00]} 49. Ke2 {[%emt 0:00:00]} f4
{[%emt 0:00:20]} 50. e4 {[%emt 0:00:00]} Nc3+ {[%emt 0:00:01]} 51. Kf3 {
[%emt 0:00:00]} Nb1 {[%emt 0:00:12]} 52. Bc1 {[%emt 0:00:00]} Kc5 {[%emt 0:00:
00]} 53. Kxf4 {[%emt 0:00:00]} Kb4 {[%emt 0:00:59]} 54. e5 {[%emt 0:00:00]}
Kxb3 {[%emt 0:00:09]} 55. e6 {[%emt 0:00:00]} Nc3 {[%emt 0:00:11]} 56. Ke5 {
[%emt 0:00:00]} Nb5 {[%emt 0:00:08]} 57. e7 {[%emt 0:00:00]} Nc7 {[%emt 0:00:
00]} 58. Kd6 {[%emt 0:00:00]} Ne8+ {[%emt 0:00:01]} 59. Kd7 {[%emt 0:00:00]}
Nf6+ {[%emt 0:01:22]} 60. Kd8 {[%emt 0:00:00]} Kc4 {[%emt 0:01:01]} 61. Bg5 {
[%emt 0:00:00]} Kd5 {[%emt 0:01:05]} 1-0

[Event "44th Chess Olympiad Women 2022"]
[Site "Chennai"]
[Date "2022.08.07"]
[Round "9.14"]
[White "Mordido, Kylen Joy"]
[Black "Gaal, Zsoka"]
[Result "0-1"]
[WhiteElo "2023"]
[BlackElo "2313"]
[Annotator "RC"]
[PlyCount "78"]
[EventDate "2022.??.??"]
[TimeControl "60"]

1. c4 {[%emt 0:00:24]} Nf6 {[%emt 0:00:14]} 2. Nc3 {[%emt 0:00:39]} e5 {
[%emt 0:00:13]} 3. g3 {[%emt 0:01:57]} Bb4 {[%emt 0:00:10]} 4. Bg2 {[%emt 0:00:
00]} O-O {[%emt 0:00:10]} 5. d3 {[%emt 0:02:49]} Re8 {[%emt 0:00:15]} 6. e4 {
[%emt 0:01:58]} c6 {[%emt 0:04:26]} 7. Nge2 {[%emt 0:05:14]} d5 {[%emt 0:00:33]
} 8. exd5 {[%emt 0:02:54]} cxd5 {[%emt 0:00:09]} 9. O-O {[%emt 0:01:43]} d4 {
[%emt 0:00:31]} 10. Nd5 {[%emt 0:01:13]} Nxd5 {[%emt 0:00:19]} 11. Bxd5 {
[%emt 0:00:16]} Nc6 {[%emt 0:00:51]} 12. a3 {[%emt 0:05:32]} Bf8 {[%emt 0:00:
00]} 13. f4 {[%emt 0:04:45]} Be6 {[%emt 0:07:13]} 14. Bg2 {[%emt 0:02:43]} Qd7
{[%emt 0:09:29]} 15. Rf2 {[%emt 0:15:31]} Bf5 {[%emt 0:07:34]} 16. fxe5 {
[%emt 0:23:55]} Nxe5 {[%emt 0:01:24]} 17. Nf4 {[%emt 0:00:31]} Ng4 {[%emt 0:00:
00]} 18. Rf1 {[%emt 0:00:25]} Ne3 {[%emt 0:08:06]} 19. Bxe3 {[%emt 0:00:14]}
dxe3 {[%emt 0:00:09]} 20. d4 {[%emt 0:02:23]} g6 {[%emt 0:07:59]} 21. Ne2 {
[%emt 0:04:03]} Bg7 {[%emt 0:00:47]} 22. Bd5 {[%emt 0:01:02]} Rad8 {[%emt 0:00:
00]} 23. a4 {[%emt 0:01:28]} Re7 {[%emt 0:04:24]} 24. Ra3 {[%emt 0:02:58]} Rde8
{[%emt 0:01:55]} 25. a5 {[%emt 0:04:08]} Bh3 {[%emt 0:01:28]} 26. Rf4 {[%emt 0:
00:00]} g5 {[%emt 0:02:26]} 27. Rf3 {[%emt 0:00:17]} h5 {[%emt 0:05:17]} 28.
Rb3 {[%emt 0:00:54]} Qc8 {[%emt 0:03:37]} 29. Qd3 {[%emt 0:01:15]} Bg4 {
[%emt 0:01:26]} 30. Rf1 {[%emt 0:00:18]} Rd8 {[%emt 0:05:10]} 31. Rb4 {[%emt 0:
00:00]} Rdd7 {[%emt 0:00:45]} 32. Bf3 {[%emt 0:00:22]} Bxf3 {[%emt 0:02:08]}
33. Rxf3 {[%emt 0:00:02]} Bxd4 {[%emt 0:03:01]} 34. Nxd4 {[%emt 0:00:55]} e2 {
[%emt 0:01:01]} 35. Rb5 {[%emt 0:00:19]} e1=Q+ {[%emt 0:00:30]} 36. Kg2 {
[%emt 0:00:37]} Re5 {[%emt 0:01:01]} 37. Rf5 {[%emt 0:00:44]} Rxb5 {[%emt 0:00:
00]} 38. cxb5 {[%emt 0:00:10]} Qcc1 {[%emt 0:00:56]} 39. Rf2 {[%emt 0:00:59]}
Qce3 {[%emt 0:01:06]} 0-1

[Event "44th Chess Olympiad Women 2022"]
[Site "Chennai"]
[Date "2022.08.07"]
[Round "9.15"]
[White "Eric, Jovana"]
[Black "Tuominen, Tanja"]
[Result "1-0"]
[WhiteElo "2271"]
[BlackElo "2080"]
[Annotator "RC"]
[PlyCount "77"]
[EventDate "2022.??.??"]
[TimeControl "60"]

1. e4 {[%emt 0:00:03]} c5 {[%emt 0:00:05]} 2. Nf3 {[%emt 0:00:04]} Nc6 {
[%emt 0:00:04]} 3. Bb5 {[%emt 0:00:12]} e6 {[%emt 0:00:22]} 4. O-O {[%emt 0:00:
00]} Nge7 {[%emt 0:00:22]} 5. Re1 {[%emt 0:00:34]} a6 {[%emt 0:00:18]} 6. Bf1 {
[%emt 0:00:17]} d5 {[%emt 0:04:03]} 7. exd5 {[%emt 0:00:46]} Nxd5 {[%emt 0:00:
00]} 8. d4 {[%emt 0:01:19]} Be7 {[%emt 0:10:13]} 9. c4 {[%emt 0:04:40]} Nf6 {
[%emt 0:01:57]} 10. Be3 {[%emt 0:01:02]} cxd4 {[%emt 0:03:20]} 11. Nxd4 {
[%emt 0:00:07]} Nxd4 {[%emt 0:00:43]} 12. Bxd4 {[%emt 0:00:43]} Bd7 {[%emt 0:
00:00]} 13. Nc3 {[%emt 0:01:31]} O-O {[%emt 0:01:44]} 14. Qd3 {[%emt 0:04:17]}
Bc6 {[%emt 0:03:16]} 15. Rad1 {[%emt 0:01:18]} Qa5 {[%emt 0:09:57]} 16. Qg3 {
[%emt 0:06:48]} Rfd8 {[%emt 0:13:00]} 17. a3 {[%emt 0:04:09]} Nh5 {[%emt 0:00:
00]} 18. Qh3 {[%emt 0:07:45]} Bf6 {[%emt 0:02:59]} 19. Bxf6 {[%emt 0:14:09]}
Nxf6 {[%emt 0:00:27]} 20. Qg3 {[%emt 0:10:23]} Rd7 {[%emt 0:11:51]} 21. Rxd7 {
[%emt 0:04:28]} Nxd7 {[%emt 0:00:17]} 22. Rd1 {[%emt 0:00:45]} h6 {[%emt 0:00:
00]} 23. Qd3 {[%emt 0:04:40]} Qg5 {[%emt 0:01:46]} 24. Ne4 {[%emt 0:02:18]} Qe5
{[%emt 0:01:28]} 25. Nc3 {[%emt 0:01:57]} Qg5 {[%emt 0:00:45]} 26. Qe2 {
[%emt 0:09:40]} h5 {[%emt 0:05:48]} 27. b4 {[%emt 0:00:48]} Ne5 {[%emt 0:00:32]
} 28. Ne4 {[%emt 0:00:55]} Qg6 {[%emt 0:00:29]} 29. Ng3 {[%emt 0:01:50]} Ng4 {
[%emt 0:04:06]} 30. h3 {[%emt 0:02:36]} Nf6 {[%emt 0:00:25]} 31. Qe5 {[%emt 0:
00:00]} h4 {[%emt 0:06:01]} 32. Bd3 {[%emt 0:00:10]} Qh6 {[%emt 0:01:33]} 33.
Ne4 {[%emt 0:00:58]} Rd8 {[%emt 0:05:03]} 34. Ng5 {[%emt 0:05:19]} Re8 {
[%emt 0:01:22]} 35. Bc2 {[%emt 0:01:47]} Qh5 {[%emt 0:00:34]} 36. Qe3 {[%emt 0:
00:00]} e5 {[%emt 0:00:22]} 37. Bb3 {[%emt 0:01:54]} Nd7 {[%emt 0:00:35]} 38.
b5 {[%emt 0:00:39]} axb5 {[%emt 0:00:08]} 39. cxb5 {[%emt 0:00:04]} 1-0

[Event "44th Chess Olympiad Women 2022"]
[Site "Chennai"]
[Date "2022.08.07"]
[Round "9.15"]
[White "Gajcin, Marina"]
[Black "Norlamo, Sarabella"]
[Result "1-0"]
[WhiteElo "2271"]
[BlackElo "1925"]
[Annotator "RC"]
[PlyCount "85"]
[EventDate "2022.??.??"]
[TimeControl "60"]

1. e4 {[%emt 0:00:02]} e5 {[%emt 0:00:05]} 2. Nf3 {[%emt 0:00:08]} Nc6 {
[%emt 0:00:08]} 3. Bc4 {[%emt 0:00:06]} Bc5 {[%emt 0:00:07]} 4. d3 {[%emt 0:00:
00]} Nf6 {[%emt 0:00:07]} 5. a4 {[%emt 0:00:19]} O-O {[%emt 0:04:38]} 6. O-O {
[%emt 0:01:58]} h6 {[%emt 0:10:16]} 7. c3 {[%emt 0:04:02]} a5 {[%emt 0:01:33]}
8. Nbd2 {[%emt 0:08:00]} d6 {[%emt 0:04:30]} 9. h3 {[%emt 0:03:25]} Be6 {
[%emt 0:01:13]} 10. Re1 {[%emt 0:08:24]} Bxc4 {[%emt 0:09:20]} 11. Nxc4 {
[%emt 0:01:43]} Re8 {[%emt 0:09:06]} 12. Ne3 {[%emt 0:11:00]} Bb6 {[%emt 0:00:
00]} 13. Nh2 {[%emt 0:08:54]} d5 {[%emt 0:05:07]} 14. Qf3 {[%emt 0:02:16]} dxe4
{[%emt 0:12:19]} 15. dxe4 {[%emt 0:00:07]} Qd3 {[%emt 0:00:17]} 16. Nhg4 {
[%emt 0:02:14]} Re6 {[%emt 0:06:05]} 17. Rd1 {[%emt 0:11:43]} Qa6 {[%emt 0:00:
00]} 18. Nf5 {[%emt 0:09:04]} Nxg4 {[%emt 0:00:26]} 19. hxg4 {[%emt 0:03:10]}
Rd8 {[%emt 0:05:17]} 20. Rxd8+ {[%emt 0:04:45]} Nxd8 {[%emt 0:00:02]} 21. g5 {
[%emt 0:00:21]} hxg5 {[%emt 0:03:45]} 22. Bxg5 {[%emt 0:00:49]} Qa8 {[%emt 0:
00:00]} 23. Qg4 {[%emt 0:03:23]} Nc6 {[%emt 0:00:29]} 24. Bf6 {[%emt 0:03:33]}
Qf8 {[%emt 0:00:35]} 25. Bxg7 {[%emt 0:01:08]} Rg6 {[%emt 0:00:23]} 26. Bxf8 {
[%emt 0:00:59]} Rxg4 {[%emt 0:00:01]} 27. Nh6+ {[%emt 0:00:06]} Kxf8 {[%emt 0:
00:00]} 28. Nxg4 {[%emt 0:00:01]} Bc5 {[%emt 0:00:31]} 29. Rd1 {[%emt 0:01:22]}
Bd6 {[%emt 0:00:38]} 30. g3 {[%emt 0:00:57]} Ke7 {[%emt 0:00:36]} 31. Kg2 {
[%emt 0:01:21]} b6 {[%emt 0:00:39]} 32. Rf1 {[%emt 0:01:41]} Nd8 {[%emt 0:00:
00]} 33. f4 {[%emt 0:00:20]} exf4 {[%emt 0:00:25]} 34. gxf4 {[%emt 0:00:26]}
Ne6 {[%emt 0:00:22]} 35. e5 {[%emt 0:00:15]} Bc5 {[%emt 0:00:09]} 36. f5 {
[%emt 0:00:42]} Ng5 {[%emt 0:00:13]} 37. Nf6 {[%emt 0:00:46]} c6 {[%emt 0:00:
00]} 38. Rd1 {[%emt 0:00:57]} Be3 {[%emt 0:00:11]} 39. Rd7+ {[%emt 0:00:12]}
Kf8 {[%emt 0:00:05]} 40. Rd8+ {[%emt 0:00:05]} Kg7 {[%emt 0:00:12]} 41. Rg8+ {
[%emt 0:30:04]} Kh6 {[%emt 0:30:32]} 42. e6 {[%emt 0:00:25]} Bc1 {[%emt 0:00:
00]} 43. exf7 {[%emt 0:00:10]} 1-0

[Event "44th Chess Olympiad Women 2022"]
[Site "Chennai"]
[Date "2022.08.07"]
[Round "9.15"]
[White "Nazarova, Anastasia"]
[Black "Blagojevic, Tijana"]
[Result "0-1"]
[WhiteElo "2208"]
[BlackElo "2330"]
[Annotator "RC"]
[PlyCount "88"]
[EventDate "2022.??.??"]
[TimeControl "60"]

1. e4 {[%emt 0:00:02]} e5 {[%emt 0:00:08]} 2. Nf3 {[%emt 0:00:04]} Nc6 {
[%emt 0:00:05]} 3. Bb5 {[%emt 0:00:04]} Nf6 {[%emt 0:00:05]} 4. d3 {[%emt 0:00:
00]} Bc5 {[%emt 0:00:05]} 5. c3 {[%emt 0:00:03]} d5 {[%emt 0:00:25]} 6. Nxe5 {
[%emt 0:12:52]} O-O {[%emt 0:00:19]} 7. Bxc6 {[%emt 0:10:17]} bxc6 {[%emt 0:00:
00]} 8. d4 {[%emt 0:00:04]} Bb6 {[%emt 0:00:16]} 9. exd5 {[%emt 0:01:52]} Qxd5
{[%emt 0:05:11]} 10. Qf3 {[%emt 0:07:41]} c5 {[%emt 0:09:44]} 11. Be3 {[%emt 0:
00:00]} cxd4 {[%emt 0:05:01]} 12. cxd4 {[%emt 0:21:59]} Ba5+ {[%emt 0:11:20]}
13. Nc3 {[%emt 0:04:19]} Rb8 {[%emt 0:04:00]} 14. Qxd5 {[%emt 0:16:34]} Nxd5 {
[%emt 0:00:08]} 15. Bd2 {[%emt 0:00:18]} Rxb2 {[%emt 0:02:04]} 16. Nxd5 {
[%emt 0:09:47]} Bxd2+ {[%emt 0:06:48]} 17. Kd1 {[%emt 0:03:17]} Bg5 {[%emt 0:
00:00]} 18. f4 {[%emt 0:02:19]} Rd8 {[%emt 0:05:39]} 19. Nc4 {[%emt 0:00:04]}
Rb8 {[%emt 0:06:55]} 20. Nce3 {[%emt 0:00:17]} Bxf4 {[%emt 0:02:33]} 21. Nxf4 {
[%emt 0:00:11]} Rxd4+ {[%emt 0:00:04]} 22. Kc2 {[%emt 0:01:02]} Rxf4 {[%emt 0:
00:00]} 23. Rab1 {[%emt 0:00:58]} Rf2+ {[%emt 0:02:24]} 24. Kc3 {[%emt 0:00:15]
} Ra8 {[%emt 0:00:10]} 25. Rhd1 {[%emt 0:00:43]} Be6 {[%emt 0:00:50]} 26. a4 {
[%emt 0:00:48]} h5 {[%emt 0:00:57]} 27. Rb7 {[%emt 0:00:24]} Ra2 {[%emt 0:00:
00]} 28. Rd4 {[%emt 0:00:24]} c5 {[%emt 0:00:17]} 29. Rh4 {[%emt 0:00:12]} Rd8
{[%emt 0:03:17]} 30. Nc2 {[%emt 0:00:56]} Bf5 {[%emt 0:01:08]} 31. Ne1 {
[%emt 0:00:18]} Re2 {[%emt 0:00:33]} 32. Nf3 {[%emt 0:00:21]} Rc2+ {[%emt 0:00:
00]} 33. Kb3 {[%emt 0:00:16]} Rxg2 {[%emt 0:01:01]} 34. Ne5 {[%emt 0:00:46]} f6
{[%emt 0:03:54]} 35. Nc6 {[%emt 0:00:46]} Rd3+ {[%emt 0:05:48]} 36. Kc4 {
[%emt 0:00:05]} Rc2+ {[%emt 0:00:19]} 37. Kb5 {[%emt 0:00:06]} Rb2+ {[%emt 0:
00:00]} 38. Ka6 {[%emt 0:00:16]} Rxb7 {[%emt 0:00:20]} 39. Kxb7 {[%emt 0:00:05]
} Bg4 {[%emt 0:00:13]} 40. h3 {[%emt 0:01:14]} g5 {[%emt 0:00:27]} 41. Rxg4 {
[%emt 0:30:34]} hxg4 {[%emt 0:30:04]} 42. hxg4 {[%emt 0:00:03]} c4 {[%emt 0:00:
00]} 43. Kxa7 {[%emt 0:00:31]} c3 {[%emt 0:00:16]} 44. Nb4 {[%emt 0:00:04]} Rd4
{[%emt 0:00:05]} 0-1

[Event "44th Chess Olympiad Women 2022"]
[Site "Chennai"]
[Date "2022.08.07"]
[Round "9.15"]
[White "Puuska, Heini"]
[Black "Velikic, Adela"]
[Result "0-1"]
[WhiteElo "2010"]
[BlackElo "2273"]
[Annotator "RC"]
[PlyCount "96"]
[EventDate "2022.??.??"]
[TimeControl "60"]

1. Nf3 {[%emt 0:00:07]} d5 {[%emt 0:00:14]} 2. c4 {[%emt 0:00:17]} d4 {[%emt 0:
00:00]} 3. g3 {[%emt 0:01:58]} c5 {[%emt 0:03:05]} 4. b4 {[%emt 0:00:49]} cxb4
{[%emt 0:00:47]} 5. a3 {[%emt 0:00:20]} b3 {[%emt 0:01:16]} 6. Qxb3 {[%emt 0:
00:00]} Nc6 {[%emt 0:00:17]} 7. Bg2 {[%emt 0:01:42]} Nf6 {[%emt 0:04:33]} 8.
O-O {[%emt 0:01:46]} e5 {[%emt 0:02:53]} 9. d3 {[%emt 0:01:57]} Be7 {[%emt 0:
00:00]} 10. a4 {[%emt 0:03:51]} Nd7 {[%emt 0:11:22]} 11. Ba3 {[%emt 0:03:46]}
a5 {[%emt 0:06:18]} 12. e3 {[%emt 0:18:41]} dxe3 {[%emt 0:25:11]} 13. fxe3 {
[%emt 0:04:48]} Ra6 {[%emt 0:09:39]} 14. d4 {[%emt 0:23:14]} O-O {[%emt 0:00:
00]} 15. Nc3 {[%emt 0:10:05]} Bxa3 {[%emt 0:02:57]} 16. Qxa3 {[%emt 0:02:19]}
Nb4 {[%emt 0:03:29]} 17. Qb3 {[%emt 0:03:15]} Re8 {[%emt 0:05:59]} 18. Nb5 {
[%emt 0:03:21]} Rf6 {[%emt 0:04:15]} 19. Rad1 {[%emt 0:02:20]} exd4 {[%emt 0:
00:00]} 20. exd4 {[%emt 0:00:35]} Nf8 {[%emt 0:03:08]} 21. Ne5 {[%emt 0:02:07]}
Bf5 {[%emt 0:00:44]} 22. Rd2 {[%emt 0:04:53]} Nd7 {[%emt 0:04:44]} 23. Nxd7 {
[%emt 0:01:32]} Qxd7 {[%emt 0:01:07]} 24. Rdf2 {[%emt 0:00:25]} Bd3 {[%emt 0:
00:00]} 25. Rxf6 {[%emt 0:00:42]} gxf6 {[%emt 0:00:01]} 26. Rc1 {[%emt 0:02:16]
} Qe6 {[%emt 0:00:44]} 27. Qd1 {[%emt 0:00:38]} Bxc4 {[%emt 0:01:19]} 28. Rxc4
{[%emt 0:00:41]} Qxc4 {[%emt 0:00:28]} 29. Nd6 {[%emt 0:00:11]} Qe2 {[%emt 0:
00:00]} 30. Qxe2 {[%emt 0:01:05]} Rxe2 {[%emt 0:00:01]} 31. Nxb7 {[%emt 0:00:
00]} Rd2 {[%emt 0:00:55]} 32. Nxa5 {[%emt 0:01:21]} Rxd4 {[%emt 0:00:06]} 33.
Nb3 {[%emt 0:00:29]} Rd1+ {[%emt 0:00:36]} 34. Kf2 {[%emt 0:00:34]} Rb1 {
[%emt 0:00:44]} 35. Nd4 {[%emt 0:00:47]} Rb2+ {[%emt 0:00:48]} 36. Ne2 {
[%emt 0:00:48]} Ra2 {[%emt 0:00:16]} 37. Be4 {[%emt 0:00:58]} Rxa4 {[%emt 0:00:
00]} 38. g4 {[%emt 0:00:28]} Na6 {[%emt 0:00:41]} 39. Bf5 {[%emt 0:00:24]} Nc5
{[%emt 0:00:22]} 40. Ng3 {[%emt 0:00:34]} Ra2+ {[%emt 0:00:30]} 41. Kg1 {
[%emt 0:07:15]} Nb3 {[%emt 0:04:33]} 42. Nh5 {[%emt 0:00:27]} Nd4 {[%emt 0:00:
00]} 43. Nxf6+ {[%emt 0:03:30]} Kg7 {[%emt 0:00:48]} 44. Nh5+ {[%emt 0:00:31]}
Kh6 {[%emt 0:00:22]} 45. Be4 {[%emt 0:01:41]} f5 {[%emt 0:01:18]} 46. Bd5 {
[%emt 0:01:05]} Ra5 {[%emt 0:01:00]} 47. Bg8 {[%emt 0:01:32]} fxg4 {[%emt 0:00:
00]} 48. Nf6 {[%emt 0:00:43]} Kg7 {[%emt 0:00:30]} 0-1

[Event "44th Chess Olympiad Women 2022"]
[Site "Chennai"]
[Date "2022.08.07"]
[Round "9.16"]
[White "Efroimski, Marsel"]
[Black "Yakubbaeva, Nilufar"]
[Result "1-0"]
[WhiteElo "2456"]
[BlackElo "2299"]
[Annotator "TA"]
[PlyCount "86"]
[EventDate "2022.??.??"]
[TimeControl "60"]

{[%evp 14,86,14,10,38,37,33,9,0,0,12,0,0,0,0,0,9,-3,-9,0,0,0,14,2,25,0,0,0,5,6,
30,0,9,0,0,0,0,0,62,60,219,47,64,56,166,201,360,368,355,359,414,414,618,570,
595,218,554,443,809,809,840,829,784,769,740,628,659,619,906,906,882,853,1078,
1019,29956]} 1. e4 {[%emt 0:00:01]} e5 {[%emt 0:00:09]} 2. Nf3 {[%emt 0:00:06]}
Nc6 {[%emt 0:00:05]} 3. Bc4 {[%emt 0:00:48]} Bc5 {[%emt 0:00:07]} 4. c3 {
[%emt 0:00:04]} Nf6 {[%emt 0:00:13]} 5. d3 {[%emt 0:00:05]} d6 {[%emt 0:00:28]}
6. O-O {[%emt 0:00:06]} h6 {[%emt 0:00:50]} 7. Re1 {[%emt 0:00:52]} O-O {
[%emt 0:07:13]} 8. h3 {[%emt 0:00:27]} Be6 {[%emt 0:00:17] 8...Bb6 is the
modern continuation. C54: Giuoco Piano: 4 c3 Nf6, main lines with 5 d4 and 5
d3.} 9. Bxe6 {[%emt 0:08:33]} fxe6 {[%emt 0:00:05]} 10. Nbd2 {[%emt 0:00:05]
[%cal Yb1d2,Yd2f1,Yf1g3]} (10. b4 $5 {[%cal Rb4c5]} Bb6 11. Nbd2 $11) 10... a5
{[%emt 0:03:50] The position is equal.} 11. Nf1 {[%emt 0:00:13]} Qd7 {[%emt 0:
02:55] [#]} 12. d4 $146 {[%emt 0:00:41]} ({Predecessor:} 12. Be3 Bxe3 13. Nxe3
Ne7 14. g3 Ng6 15. Kg2 Rf7 16. Nh2 Raf8 17. Rf1 d5 18. Qc2 {1-0 (53) Hou,Y 
(2658)-Lei,T (2505) Chess.com INT 2021}) 12... exd4 {[%emt 0:02:34]} 13. cxd4 {
[%emt 0:00:04]} Bb6 {[%emt 0:00:46]} 14. Ng3 {[%emt 0:02:37]} Rf7 {[%emt 0:11:
00]} 15. Be3 {[%emt 0:00:09]} d5 {[%emt 0:02:33]} 16. e5 {[%emt 0:00:00]} Ne4 {
[%emt 0:01:04]} 17. Qd3 {[%emt 0:09:29]} Nxg3 {[%emt 0:06:02]} 18. fxg3 {
[%emt 0:00:03]} Raf8 {[%emt 0:00:26]} 19. Nd2 {[%emt 0:07:23]} Qe7 {[%emt 0:06:
54]} 20. a3 {[%emt 0:02:06]} Qe8 {[%emt 0:08:57]} 21. Kh2 {[%emt 0:00:00]} Qd7
{[%emt 0:09:34]} 22. Nf1 {[%emt 0:01:33]} Kh8 {[%emt 0:01:17]} 23. g4 {[%emt 0:
01:05]} Rf4 {[%emt 0:03:44][%cal Rb6d4]} 24. Bxf4 {[%emt 0:02:38]} Rxf4 {
[%emt 0:00:11]} 25. Ng3 {[%emt 0:04:37] [#] Rf1 is the strong threat.} Bxd4 {
[%emt 0:05:42]} ({Better is} 25... Rxd4 $11 26. Qg6 Rf4) 26. Ne2 $1 $14 {
[%emt 0:00:00]} Qf7 {[%emt 0:05:45]} (26... Nxe5 $2 27. Qg3 Bf2 28. Qxf4 $18) (
{Black should try} 26... Re4 $14) 27. Nxd4 $2 {[%emt 0:06:50]} (27. Nxf4 $18
Qxf4+ 28. Kh1) 27... Rxd4 {[%emt 0:00:31]} 28. Rf1 {[%emt 0:10:11][%cal Ye1f1,
Yf1f7,Yf7c7]} Rxd3 {[%emt 0:03:54] White now steadily converts the win.} (28...
Qe7 $14 29. Qg3 a4) 29. Rxf7 $18 {[%emt 0:00:56]} Nxe5 $2 {[%emt 0:01:18] [#]}
(29... Rb3 30. Rxc7 Rxb2) 30. Rxc7 $14 {[%emt 0:00:05] Endgame KRR-KRN} Rd2 {
[%emt 0:07:32]} 31. Rxb7 {[%emt 0:01:33]} Nd3 {[%emt 0:00:35]} 32. Rf1 {
[%emt 0:05:26] Prevents Nf4.} Rxb2 {[%emt 0:06:55]} (32... Ne5 $142 33. b4 axb4
34. axb4 Re2) 33. Rxb2 $18 {[%emt 0:08:54]} Nxb2 {[%emt 0:00:05] KR-KN} 34.
Rf8+ {[%emt 0:01:37]} Kh7 {[%emt 0:00:07]} 35. Re8 {[%emt 0:00:10] White is
clearly winning.} d4 {[%emt 0:00:46]} (35... Nc4 $142 36. Rxe6 a4) 36. Rxe6 {
[%emt 0:00:09]} d3 {[%emt 0:00:21]} 37. Rd6 {[%emt 0:00:00]} Kg8 {[%emt 0:00:
48]} 38. Kg3 {[%emt 0:01:20]} Kf7 {[%emt 0:00:10]} 39. Kf2 {[%emt 0:01:21]} Ke7
{[%emt 0:00:28]} 40. Rd4 {[%emt 0:00:18]} Ke6 {[%emt 0:00:00]} 41. Ke3 {
[%emt 0:30:49]} Ke5 {[%emt 0:30:10]} 42. Rd7 {[%emt 0:01:00]} g5 {[%emt 0:00:
58]} 43. Rb7 {[%emt 0:00:51]} Kd5 {[%emt 0:04:37] Weighted Error Value:
White=0.28 (precise) /Black=0.43} 1-0

[Event "44th Chess Olympiad Women 2022"]
[Site "Chennai"]
[Date "2022.08.07"]
[Round "9.16"]
[White "Khamdamova, Afruza"]
[Black "Levitan, Ronit"]
[Result "1-0"]
[WhiteElo "1969"]
[BlackElo "2084"]
[Annotator "NA RC"]
[PlyCount "65"]
[EventDate "2022.??.??"]
[TimeControl "60"]

1. e4 {[%emt 0:00:02]} e5 {[%emt 0:00:44]} 2. Nf3 {[%emt 0:00:12]} Nc6 {
[%emt 0:00:12]} 3. Bb5 {[%emt 0:00:11]} a6 {[%emt 0:00:07]} 4. Ba4 {[%emt 0:00:
00]} Nf6 {[%emt 0:00:07]} 5. d3 {[%emt 0:00:06]} d6 {[%emt 0:00:45]} 6. c4 {
[%emt 0:00:56]} g6 {[%emt 0:03:14]} 7. h3 {[%emt 0:00:10]} Bg7 {[%emt 0:00:14]}
8. O-O {[%emt 0:00:12]} O-O {[%emt 0:01:32]} 9. Nc3 {[%emt 0:00:20]} Nb8 {
[%emt 0:11:29]} 10. d4 {[%emt 0:06:51]} exd4 {[%emt 0:02:14]} 11. Nxd4 {
[%emt 0:00:06]} c6 {[%emt 0:01:34]} 12. Bf4 {[%emt 0:06:57]} Qe7 {[%emt 0:00:
00]} 13. Re1 {[%emt 0:09:46]} Rd8 {[%emt 0:00:20]} 14. e5 {[%emt 0:15:55]} dxe5
{[%emt 0:06:03]} 15. Bxe5 {[%emt 0:03:06]} Be6 {[%emt 0:02:32]} 16. Qf3 {
[%emt 0:01:17]} Nbd7 {[%emt 0:11:10]} 17. Nxe6 {[%emt 0:04:17]} Nxe5 {[%emt 0:
00:00]} 18. Rxe5 {[%emt 0:00:06]} fxe6 {[%emt 0:00:05]} 19. Rae1 {[%emt 0:00:
00]} Qb4 {[%emt 0:12:50]} 20. Bb3 {[%emt 0:13:46]} Rf8 {[%emt 0:01:14]} 21.
Rxe6 {[%emt 0:01:51]} Nd7 {[%emt 0:03:10]} 22. Qe3 {[%emt 0:03:38]} Qc5 {
[%emt 0:03:27]} 23. Ne4 {[%emt 0:03:40]} Qxe3 {[%emt 0:00:38]} 24. Rxe3 {
[%emt 0:00:04]} Bd4 {[%emt 0:01:12]} 25. Rd3 {[%emt 0:01:20]} c5 {[%emt 0:00:
00]} 26. Ba4 {[%emt 0:01:06]} Ne5 {[%emt 0:02:45]} 27. Rxd4 {[%emt 0:01:17]}
Nf3+ {[%emt 0:02:30]} 28. gxf3 {[%emt 0:00:06]} cxd4 {[%emt 0:00:04]} 29. Kg2 {
[%emt 0:00:54]} Rad8 {[%emt 0:01:39]} 30. c5 {[%emt 0:01:12]} Kg7 {[%emt 0:00:
00]} 31. Rb6 {[%emt 0:01:44]} d3 {[%emt 0:03:30]} 32. Rxb7+ {[%emt 0:00:04]}
Kh6 {[%emt 0:00:10]} 33. h4 {[%emt 0:00:37]} 1-0